[Event "MČR mládeže v rapid šachu 2024 H10"]
[Site "Harrachov, Czech Republic"]
[Date "????.??.??"]
[Round "7.1"]
[White "Vo Daniel"]
[Black "Zidek Damian"]
[Result "1-0"]
[TimeControl "20+5"]
[WhiteFideId "23761229"]
[BlackFideId "23761652"]
[WhiteElo "1679"]
[BlackElo "1763"]

1. e4 {[%clk 00:20:07]} {[%emt 00:00:01]} e6 {[%clk 00:20:09]} {[%emt
00:00:03]} 2. Nf3 {[%clk 00:20:10]} d5 {[%clk 00:20:13]} {[%emt 00:00:01]} 3.
Nc3 {[%clk 00:20:13]} {[%emt 00:00:02]} Nf6 {[%clk 00:20:16]} {[%emt 00:00:02]}
4. e5 {[%clk 00:20:13]} {[%emt 00:00:06]} Nfd7 {[%clk 00:20:20]} {[%emt
00:00:01]} 5. d4 {[%clk 00:20:16]} {[%emt 00:00:02]} c5 {[%clk 00:20:23]}
{[%emt 00:00:01]} 6. dxc5 {[%clk 00:20:18]} {[%emt 00:00:03]} Bxc5 {[%clk
00:20:26]} {[%emt 00:00:02]} 7. Bd3 {[%clk 00:20:21]} {[%emt 00:00:02]} Nc6
{[%clk 00:20:26]} {[%emt 00:00:05]} 8. Bf4 {[%clk 00:20:24]} {[%emt 00:00:02]}
b6 {[%clk 00:20:03]} {[%emt 00:00:27]} 9. O-O {[%clk 00:19:58]} {[%emt
00:00:32]} h6 {[%clk 00:19:55]} {[%emt 00:00:13]} 10. Bg3 {[%clk 00:19:46]}
{[%emt 00:00:17]} O-O {[%clk 00:19:54]} {[%emt 00:00:06]} 11. a3 {[%clk
00:19:06]} {[%emt 00:00:46]} a6 {[%clk 00:19:32]} {[%emt 00:00:26]} 12. b4
{[%clk 00:18:17]} {[%emt 00:00:54]} Be7 {[%clk 00:19:21]} {[%emt 00:00:16]} 13.
b5 {[%clk 00:17:17]} {[%emt 00:01:06]} axb5 {[%clk 00:19:00]} {[%emt 00:00:26]}
14. Nxb5 {[%clk 00:17:11]} {[%emt 00:00:11]} Ba6 {[%clk 00:18:33]} {[%emt
00:00:31]} 15. a4 {[%emt 00:01:00]} Nc5 {[%clk 00:18:10]} {[%emt 00:00:26]} 16.
Be2 {[%clk 00:13:47]} {[%emt 00:02:37]} Na7 {[%clk 00:15:41]} {[%emt 00:02:34]}
17. Nfd4 {[%clk 00:11:47]} {[%emt 00:02:06]} Qd7 {[%clk 00:13:38]} {[%emt
00:02:05]} 18. Kh1 {[%clk 00:10:27]} {[%emt 00:01:27]} Nxb5 {[%clk 00:12:08]}
{[%emt 00:01:35]} 19. Nxb5 {[%clk 00:10:19]} {[%emt 00:00:13]} Nxa4 {[%clk
00:10:33]} {[%emt 00:01:40]} 20. c4 {[%clk 00:07:30]} {[%emt 00:02:55]} Bxb5
{[%clk 00:09:37]} {[%emt 00:01:01]} 21. cxb5 {[%clk 00:07:19]} {[%emt
00:00:16]} Nc3 {[%clk 00:08:33]} {[%emt 00:01:09]} 22. Qd3 {[%clk 00:06:49]}
{[%emt 00:00:34]} Nxe2 {[%clk 00:08:28]} {[%emt 00:00:10]} 23. Qxe2 {[%clk
00:06:53]} {[%emt 00:00:02]} Qb7 {[%clk 00:07:38]} {[%emt 00:00:54]} 24. Ra6
{[%clk 00:05:59]} {[%emt 00:01:00]} Ra7 {[%clk 00:07:26]} {[%emt 00:00:17]} 25.
Rfa1 {[%clk 00:05:45]} {[%emt 00:00:18]} Rfa8 {[%clk 00:06:51]} {[%emt
00:00:40]} 26. Qa2 {[%clk 00:05:33]} {[%emt 00:00:17]} Rxa6 {[%clk 00:05:22]}
{[%emt 00:01:34]} 27. bxa6 {[%clk 00:05:35]} {[%emt 00:00:03]} Qa7 {[%clk
00:05:22]} {[%emt 00:00:05]} 28. Qe2 {[%clk 00:05:08]} {[%emt 00:00:31]} Qc7
{[%clk 00:04:13]} {[%emt 00:01:15]} 29. f4 {[%clk 00:04:06]} {[%emt 00:01:07]}
Ra7 {[%clk 00:03:25]} {[%emt 00:00:52]} 30. Qb5 {[%clk 00:03:10]} {[%emt
00:01:01]} Bc5 {[%clk 00:02:40]} {[%emt 00:00:50]} 31. h3 {[%clk 00:02:34]}
{[%emt 00:00:42]} Qc8 {[%clk 00:02:27]} {[%emt 00:00:17]} 32. Qd3 {[%clk
00:02:07]} {[%emt 00:00:33]} g6 {[%clk 00:01:50]} {[%emt 00:00:42]} 33. Bh4
{[%clk 00:01:47]} {[%emt 00:00:25]} Qd7 {[%clk 00:01:03]} {[%emt 00:00:51]} 34.
Bf6 {[%clk 00:01:33]} {[%emt 00:00:21]} Be7 {[%clk 00:00:48]} {[%emt 00:00:19]}
35. Bxe7 {[%clk 00:00:38]} {[%emt 00:01:02]} Qxe7 {[%clk 00:00:51]} {[%emt
00:00:01]} 36. Qb5 {[%clk 00:00:42]} {[%emt 00:00:02]} Qc5 {[%clk 00:00:36]}
{[%emt 00:00:20]} 37. Qe8+ {[%clk 00:00:27]} {[%emt 00:00:21]} Kg7 {[%clk
00:00:39]} {[%emt 00:00:01]} 38. Qb8 {[%clk 00:00:28]} {[%emt 00:00:04]} Qe7
{[%clk 00:00:12]} {[%emt 00:00:32]} 39. Qxb6 {[%clk 00:00:27]} {[%emt
00:00:07]} Qd7 {[%clk 00:00:08]} {[%emt 00:00:09]} 40. Kh2 {[%clk 00:00:14]}
{[%emt 00:00:18]} Qe7 {[%clk 00:00:10]} {[%emt 00:00:02]} 41. Rc1 {[%clk
00:00:14]} {[%emt 00:00:05]} Qh4 {[%clk 00:00:08]} {[%emt 00:00:07]} 42. g3
{[%clk 00:00:11]} {[%emt 00:00:09]} Qe7 {[%clk 00:00:11]} {[%emt 00:00:01]} 43.
Rc2 {[%clk 00:00:12]} {[%emt 00:00:04]} Qd7 {[%clk 00:00:15]} {[%emt 00:00:02]}
44. Ra2 {[%clk 00:00:10]} {[%emt 00:00:06]} g5 {[%clk 00:00:09]} {[%emt
00:00:10]} 45. Qd6 {[%clk 00:00:07]} {[%emt 00:00:09]} Qxd6 {[%clk 00:00:08]}
{[%emt 00:00:06]} 46. exd6 {[%clk 00:00:11]} {[%emt 00:00:01]} Kf8 {[%clk
00:00:12]} 47. Rb2 {[%clk 00:00:06]} {[%emt 00:00:10]} Ke8 {[%clk 00:00:11]}
{[%emt 00:00:05]} 48. Rb8+ {[%clk 00:00:09]} {[%emt 00:00:02]} Kd7 {[%clk
00:00:10]} {[%emt 00:00:02]} 49. Rb7+ {[%clk 00:00:13]} {[%emt 00:00:05]} 1-0



[ePGN "0.1;DGT LiveChess/2.2.6"]

[Event "MČR mládeže v rapid šachu 2024 H10"]
[Site "Harrachov, Czech Republic"]
[Date "????.??.??"]
[Round "7.2"]
[White "Strihavka Petr"]
[Black "Lutskiy Mikhail"]
[Result "0-1"]
[TimeControl "20+5"]
[WhiteFideId "23760702"]
[BlackFideId "23744308"]
[WhiteElo "1546"]
[BlackElo "1729"]

1. e4 {[%clk 00:20:08]} {[%emt 00:00:01]} c5 {[%clk 00:20:06]} {[%emt
00:00:05]} 2. Nf3 {[%clk 00:20:11]} {[%emt 00:00:02]} g6 {[%clk 00:20:09]}
{[%emt 00:00:03]} 3. d4 {[%clk 00:20:13]} {[%emt 00:00:02]} cxd4 {[%clk
00:20:12]} {[%emt 00:00:02]} 4. Nxd4 {[%clk 00:20:15]} {[%emt 00:00:02]} Bg7
{[%clk 00:20:16]} {[%emt 00:00:02]} 5. Nc3 {[%clk 00:20:16]} {[%emt 00:00:04]}
Nc6 {[%clk 00:20:19]} {[%emt 00:00:02]} 6. Be3 {[%clk 00:20:19]} {[%emt
00:00:01]} Nf6 {[%clk 00:20:19]} {[%emt 00:00:05]} 7. Be2 {[%clk 00:20:21]}
{[%emt 00:00:02]} O-O {[%clk 00:20:17]} {[%emt 00:00:07]} 8. O-O {[%clk
00:20:23]} {[%emt 00:00:04]} d6 {[%clk 00:20:20]} {[%emt 00:00:02]} 9. h3
{[%clk 00:20:12]} {[%emt 00:00:15]} Bd7 {[%clk 00:20:17]} {[%emt 00:00:10]} 10.
Qd2 {[%clk 00:19:54]} {[%emt 00:00:22]} Re8 {[%clk 00:20:16]} {[%emt 00:00:05]}
11. Rad1 {[%clk 00:19:42]} {[%emt 00:00:17]} Rc8 {[%clk 00:20:11]} {[%emt
00:00:11]} 12. f4 {[%clk 00:18:38]} {[%emt 00:01:08]} Qc7 {[%clk 00:19:28]}
{[%emt 00:00:48]} 13. Ncb5 {[%clk 00:17:48]} {[%emt 00:00:55]} Qb8 {[%clk
00:18:11]} {[%emt 00:01:23]} 14. Nc3 {[%clk 00:16:22]} {[%emt 00:01:32]} a6
{[%clk 00:17:37]} {[%emt 00:00:39]} 15. Nxc6 {[%clk 00:15:30]} {[%emt
00:00:56]} Bxc6 {[%clk 00:17:34]} {[%emt 00:00:08]} 16. Bf3 {[%clk 00:15:08]}
{[%emt 00:00:27]} b5 {[%clk 00:17:21]} {[%emt 00:00:19]} 17. a3 {[%clk
00:14:09]} {[%emt 00:01:04]} Red8 {[%clk 00:16:03]} {[%emt 00:01:22]} 18. Nd5
{[%clk 00:12:46]} {[%emt 00:01:27]} Bxd5 {[%clk 00:15:59]} {[%emt 00:00:10]} 19.
exd5 {[%clk 00:12:48]} {[%emt 00:00:03]} Qc7 {[%clk 00:15:23]} {[%emt
00:00:41]} 20. c3 {[%clk 00:12:36]} {[%emt 00:00:21]} Nd7 {[%clk 00:15:14]}
{[%emt 00:00:19]} 21. Qf2 {[%clk 00:11:55]} {[%emt 00:00:44]} Nc5 {[%clk
00:14:37]} {[%emt 00:00:45]} 22. Rfe1 {[%clk 00:10:48]} {[%emt 00:01:11]} Re8
{[%clk 00:11:51]} {[%emt 00:02:51]} 23. Bg4 {[%clk 00:08:59]} {[%emt 00:01:52]}
Rcd8 {[%clk 00:11:41]} {[%emt 00:00:17]} 24. Bf3 {[%clk 00:08:33]} {[%emt
00:00:31]} e5 {[%clk 00:11:05]} {[%emt 00:00:41]} 25. dxe6 {[%emt 00:01:01]}
Rxe6 {[%clk 00:11:02]} {[%emt 00:00:07]} 26. Bd5 {[%clk 00:07:18]} {[%emt
00:00:25]} Ree8 {[%clk 00:10:52]} {[%emt 00:00:15]} 27. Bd4 {[%clk 00:06:13]}
{[%emt 00:01:09]} Rxe1+ {[%clk 00:10:49]} {[%emt 00:00:09]} 28. Qxe1 {[%clk
00:06:01]} {[%emt 00:00:14]} Bh6 {[%clk 00:10:18]} {[%emt 00:00:38]} 29. Qh4
{[%clk 00:05:28]} {[%emt 00:00:37]} Bg7 {[%clk 00:09:33]} {[%emt 00:00:51]} 30.
Bxg7 {[%clk 00:05:13]} {[%emt 00:00:20]} Kxg7 {[%clk 00:09:33]} {[%emt
00:00:05]} 31. f5 {[%clk 00:04:25]} {[%emt 00:00:53]} Nd7 {[%clk 00:08:44]}
{[%emt 00:00:55]} 32. fxg6 {[%clk 00:04:05]} {[%emt 00:00:24]} hxg6 {[%emt
00:00:11]} 33. Rd4 {[%clk 00:03:10]} {[%emt 00:00:58]} Re8 {[%clk 00:06:14]}
{[%emt 00:02:30]} 34. Qf2 {[%clk 00:02:53]} {[%emt 00:00:21]} Nf6 {[%clk
00:03:59]} {[%emt 00:02:22]} 35. Ba2 {[%clk 00:02:35]} {[%emt 00:00:22]} Re5
{[%clk 00:02:47]} {[%emt 00:01:17]} 36. Rf4 {[%clk 00:02:12]} {[%emt 00:00:28]}
Qe7 {[%clk 00:02:43]} {[%emt 00:00:10]} 37. g4 {[%clk 00:01:40]} {[%emt
00:00:36]} Re1+ {[%clk 00:02:38]} {[%emt 00:00:09]} 38. Kg2 {[%clk 00:01:30]}
{[%emt 00:00:15]} Re2 {[%clk 00:02:42]} {[%emt 00:00:03]} 39. Rxf6 {[%clk
00:01:26]} {[%emt 00:00:09]} Rxf2+ {[%clk 00:02:30]} {[%emt 00:00:17]} 40. Rxf2
{[%clk 00:01:28]} {[%emt 00:00:02]} Qe4+ {[%clk 00:02:34]} {[%emt 00:00:01]} 41.
Kg3 {[%clk 00:01:03]} {[%emt 00:00:26]} f5 {[%clk 00:02:29]} {[%emt 00:00:13]}
42. gxf5 {[%clk 00:00:55]} {[%emt 00:00:13]} gxf5 {[%clk 00:02:32]} {[%emt
00:00:03]} 0-1



[ePGN "0.1;DGT LiveChess/2.2.6"]

[Event "MČR mládeže v rapid šachu 2024 H10"]
[Site "Harrachov, Czech Republic"]
[Date "????.??.??"]
[Round "7.3"]
[White "Temirbek Amirali"]
[Black "Bucek Vit"]
[Result "0-1"]
[TimeControl "20+5"]
[WhiteFideId "447019808"]
[BlackFideId "23750812"]
[WhiteElo "1514"]
[BlackElo "1586"]

1. e4 {[%clk 00:20:08]} c5 {[%clk 00:20:09]} {[%emt 00:00:02]} 2. Nf3 {[%clk
00:20:10]} {[%emt 00:00:03]} Nc6 {[%clk 00:20:12]} {[%emt 00:00:02]} 3. d4
{[%clk 00:20:12]} {[%emt 00:00:02]} cxd4 {[%clk 00:20:16]} {[%emt 00:00:02]} 4.
Nxd4 {[%clk 00:20:14]} {[%emt 00:00:02]} g6 {[%clk 00:20:19]} {[%emt 00:00:02]}
5. c4 {[%clk 00:20:17]} {[%emt 00:00:02]} Bg7 {[%clk 00:20:22]} {[%emt
00:00:02]} 6. Be3 {[%clk 00:20:19]} {[%emt 00:00:02]} d6 {[%clk 00:20:23]}
{[%emt 00:00:04]} 7. Nc3 {[%clk 00:20:22]} {[%emt 00:00:03]} Nf6 {[%clk
00:20:26]} {[%emt 00:00:02]} 8. Be2 {[%clk 00:20:24]} {[%emt 00:00:03]} O-O
{[%clk 00:20:29]} {[%emt 00:00:03]} 9. O-O {[%clk 00:20:24]} {[%emt 00:00:04]}
Bd7 {[%clk 00:20:30]} {[%emt 00:00:04]} 10. Re1 {[%clk 00:20:23]} {[%emt
00:00:05]} Ne5 {[%clk 00:20:05]} {[%emt 00:00:31]} 11. Qc2 {[%clk 00:19:27]}
{[%emt 00:01:01]} Bc6 {[%clk 00:19:55]} {[%emt 00:00:15]} 12. Rad1 {[%clk
00:18:44]} {[%emt 00:00:48]} Ned7 {[%clk 00:19:50]} {[%emt 00:00:10]} 13. b4
{[%clk 00:17:48]} {[%emt 00:01:01]} Nb6 {[%clk 00:17:44]} {[%emt 00:02:11]} 14.
Nxc6 {[%clk 00:17:07]} {[%emt 00:00:46]} bxc6 {[%clk 00:17:45]} {[%emt
00:00:03]} 15. c5 {[%clk 00:17:05]} {[%emt 00:00:08]} Nc8 {[%clk 00:17:36]}
{[%emt 00:00:13]} 16. e5 {[%clk 00:15:26]} {[%emt 00:01:45]} Nd5 {[%clk
00:16:02]} {[%emt 00:01:39]} 17. Nxd5 {[%clk 00:15:19]} {[%emt 00:00:12]} cxd5
{[%clk 00:16:05]} {[%emt 00:00:02]} 18. exd6 {[%clk 00:15:15]} {[%emt
00:00:08]} exd6 {[%clk 00:15:36]} {[%emt 00:00:35]} 19. Rxd5 {[%clk 00:15:14]}
{[%emt 00:00:07]} Qc7 {[%clk 00:15:09]} {[%emt 00:00:27]} 20. Qe4 {[%clk
00:14:07]} {[%emt 00:01:16]} Rb8 {[%clk 00:14:35]} {[%emt 00:00:38]} 21. Rc1
{[%clk 00:13:11]} {[%emt 00:01:01]} Qb7 {[%clk 00:13:43]} {[%emt 00:00:57]} 22.
cxd6 {[%clk 00:11:04]} {[%emt 00:02:11]} Nxd6 {[%clk 00:13:16]} {[%emt
00:00:33]} 23. Qd3 {[%clk 00:10:22]} {[%emt 00:00:46]} Nf5 {[%clk 00:12:29]}
{[%emt 00:00:52]} 24. Bc5 {[%clk 00:10:08]} {[%emt 00:00:16]} Rfe8 {[%clk
00:11:53]} {[%emt 00:00:43]} 25. Bf3 {[%clk 00:09:46]} {[%emt 00:00:28]} Qc8
{[%clk 00:09:25]} {[%emt 00:02:32]} 26. Rd7 {[%clk 00:08:18]} {[%emt 00:01:34]}
Rxb4 {[%clk 00:06:52]} {[%emt 00:02:38]} 27. Qd5 {[%clk 00:06:38]} {[%emt
00:01:40]} Ne7 {[%clk 00:04:18]} {[%emt 00:02:45]} 28. Qd6 {[%clk 00:05:06]}
{[%emt 00:01:37]} Rd4 {[%clk 00:03:06]} {[%emt 00:01:17]} 29. Rxe7 {[%clk
00:01:37]} {[%emt 00:03:33]} Rxd6 {[%clk 00:02:43]} {[%emt 00:00:29]} 30. Rxe8+
{[%clk 00:01:38]} {[%emt 00:00:05]} Qxe8 {[%clk 00:02:43]} {[%emt 00:00:05]} 31.
Bxd6 {[%clk 00:01:40]} {[%emt 00:00:02]} Bf8 {[%clk 00:02:19]} {[%emt
00:00:29]} 32. Bb7 {[%clk 00:00:15]} {[%emt 00:01:30]} Qd7 {[%clk 00:01:57]}
{[%emt 00:00:27]} 33. Bxf8 {[%clk 00:00:09]} {[%emt 00:00:10]} Qxb7 {[%clk
00:01:52]} {[%emt 00:00:10]} 0-1



[ePGN "0.1;DGT LiveChess/2.2.6"]

[Event "MČR mládeže v rapid šachu 2024 H10"]
[Site "Harrachov, Czech Republic"]
[Date "????.??.??"]
[Round "7.4"]
[White "Macharacek Jakub"]
[Black "Skoloud Josef"]
[Result "0-1"]
[TimeControl "20+5"]
[WhiteFideId "23766697"]
[BlackFideId "23744111"]
[WhiteElo "1584"]
[BlackElo "1683"]

1. e4 {[%clk 00:20:08]} e5 {[%clk 00:20:08]} {[%emt 00:00:03]} 2. Nf3 {[%clk
00:20:11]} Nc6 {[%clk 00:20:11]} {[%emt 00:00:03]} 3. Bc4 {[%clk 00:20:14]}
{[%emt 00:00:02]} Nf6 {[%clk 00:20:14]} {[%emt 00:00:03]} 4. d3 {[%clk
00:20:09]} {[%emt 00:00:10]} Be7 {[%clk 00:20:12]} {[%emt 00:00:07]} 5. Be3
{[%clk 00:20:07]} {[%emt 00:00:07]} d6 {[%clk 00:20:02]} {[%emt 00:00:16]} 6.
h3 {[%clk 00:20:07]} {[%emt 00:00:04]} O-O {[%clk 00:19:49]} {[%emt 00:00:18]}
7. O-O {[%clk 00:20:02]} {[%emt 00:00:10]} Be6 {[%clk 00:18:46]} {[%emt
00:01:08]} 8. Nbd2 {[%clk 00:18:27]} {[%emt 00:01:39]} Qd7 {[%clk 00:17:27]}
{[%emt 00:01:25]} 9. c3 {[%clk 00:16:54]} {[%emt 00:01:38]} Rad8 {[%clk
00:15:10]} {[%emt 00:02:22]} 10. Re1 {[%clk 00:14:26]} {[%emt 00:02:32]} d5
{[%clk 00:11:05]} {[%emt 00:04:11]} 11. exd5 {[%clk 00:13:46]} {[%emt
00:00:45]} Nxd5 {[%clk 00:10:50]} {[%emt 00:00:19]} 12. d4 {[%clk 00:12:13]}
{[%emt 00:01:38]} Nxe3 {[%clk 00:09:53]} {[%emt 00:01:03]} 13. fxe3 {[%clk
00:12:02]} {[%emt 00:00:16]} e4 {[%clk 00:07:01]} {[%emt 00:02:57]} 14. Bxe6
{[%clk 00:07:39]} {[%emt 00:04:29]} Qxe6 {[%clk 00:07:04]} {[%emt 00:00:02]} 15.
Nh2 {[%clk 00:07:39]} {[%emt 00:00:04]} Bg5 {[%clk 00:04:43]} {[%emt 00:02:27]}
16. c4 {[%clk 00:04:25]} {[%emt 00:03:20]} Qg6 {[%clk 00:02:37]} {[%emt
00:02:10]} 17. Qe2 {[%clk 00:03:09]} {[%emt 00:01:19]} Nb4 {[%clk 00:02:10]}
{[%emt 00:00:33]} 18. Nb3 {[%clk 00:02:29]} {[%emt 00:00:45]} Nd3 {[%clk
00:02:07]} {[%emt 00:00:08]} 19. Rf1 {[%clk 00:02:25]} {[%emt 00:00:09]} h5
{[%clk 00:01:37]} {[%emt 00:00:35]} 20. g4 {[%clk 00:01:20]} {[%emt 00:01:10]}
h4 {[%clk 00:01:14]} {[%emt 00:00:28]} 21. Rf5 {[%clk 00:01:10]} {[%emt
00:00:16]} Qh6 {[%clk 00:00:46]} {[%emt 00:00:33]} 22. Nf1 {[%clk 00:00:40]}
{[%emt 00:00:35]} c6 {[%clk 00:00:33]} {[%emt 00:00:17]} 23. Nc5 {[%clk
00:00:39]} {[%emt 00:00:06]} g6 {[%clk 00:00:17]} {[%emt 00:00:21]} 24. Rxg5
{[%clk 00:00:24]} {[%emt 00:00:20]} Qxg5 {[%clk 00:00:20]} {[%emt 00:00:02]} 25.
Nxd3 {[%clk 00:00:27]} {[%emt 00:00:02]} exd3 {[%clk 00:00:22]} {[%emt
00:00:02]} 26. Qxd3 {[%clk 00:00:31]} {[%emt 00:00:01]} Qf6 {[%clk 00:00:15]}
{[%emt 00:00:13]} 27. Rd1 {[%clk 00:00:22]} {[%emt 00:00:13]} c5 {[%clk
00:00:19]} {[%emt 00:00:02]} 28. Nh2 {[%clk 00:00:19]} {[%emt 00:00:08]} cxd4
{[%clk 00:00:18]} {[%emt 00:00:05]} 29. exd4 {[%clk 00:00:23]} Qb6 {[%clk
00:00:15]} {[%emt 00:00:08]} 30. b3 {[%clk 00:00:15]} {[%emt 00:00:13]} Rfe8
{[%clk 00:00:13]} {[%emt 00:00:07]} 31. Nf3 {[%clk 00:00:19]} {[%emt 00:00:02]}
Qf6 {[%clk 00:00:10]} {[%emt 00:00:08]} 32. Kg2 {[%clk 00:00:08]} {[%emt
00:00:17]} Qc6 {[%clk 00:00:12]} {[%emt 00:00:03]} 33. Kf2 {[%clk 00:00:09]}
{[%emt 00:00:04]} Qb6 {[%clk 00:00:15]} {[%emt 00:00:02]} 34. Rd2 {[%clk
00:00:09]} {[%emt 00:00:04]} Qc7 {[%clk 00:00:13]} {[%emt 00:00:08]} 35. Kf1
{[%clk 00:00:00]} {[%emt 00:00:09]} 0-1



[ePGN "0.1;DGT LiveChess/2.2.6"]

[Event "MČR mládeže v rapid šachu 2024 H10"]
[Site "Harrachov, Czech Republic"]
[Date "????.??.??"]
[Round "7.5"]
[White "Stepnicka Filip"]
[Black "Zelenka Tomas"]
[Result "0-1"]
[TimeControl "20+5"]
[WhiteFideId "23771542"]
[BlackFideId "23750200"]
[WhiteElo "1531"]
[BlackElo "1607"]

1. e4 {[%clk 00:20:07]} {[%emt 00:00:02]} c5 {[%clk 00:20:09]} {[%emt
00:00:02]} 2. Nf3 {[%clk 00:20:08]} {[%emt 00:00:04]} Nc6 {[%clk 00:20:12]}
{[%emt 00:00:03]} 3. c4 {[%clk 00:20:03]} {[%emt 00:00:09]} g6 {[%clk
00:20:11]} {[%emt 00:00:06]} 4. d4 {[%clk 00:19:53]} {[%emt 00:00:15]} cxd4
{[%clk 00:20:13]} {[%emt 00:00:02]} 5. Nxd4 {[%clk 00:19:53]} {[%emt 00:00:05]}
Bg7 {[%clk 00:20:15]} {[%emt 00:00:02]} 6. Be3 {[%clk 00:19:40]} {[%emt
00:00:19]} Nf6 {[%clk 00:20:17]} {[%emt 00:00:03]} 7. Nc3 {[%clk 00:19:28]}
{[%emt 00:00:17]} Ng4 {[%clk 00:20:16]} {[%emt 00:00:05]} 8. Nxc6 {[%clk
00:18:13]} {[%emt 00:01:21]} Nxe3 {[%clk 00:20:18]} {[%emt 00:00:04]} 9. Nxd8
{[%clk 00:17:55]} {[%emt 00:00:23]} Nxd1 {[%clk 00:20:14]} {[%emt 00:00:08]} 10.
Nxf7 {[%clk 00:17:10]} {[%emt 00:00:50]} Nxc3 {[%clk 00:18:26]} {[%emt
00:01:52]} 11. Nxh8 {[%clk 00:17:03]} {[%emt 00:00:13]} Bxh8 {[%clk 00:18:29]}
{[%emt 00:00:03]} 12. f3 {[%clk 00:15:58]} {[%emt 00:01:10]} Na4 {[%clk
00:17:17]} {[%emt 00:01:14]} 13. O-O-O {[%clk 00:14:28]} {[%emt 00:01:37]} Nxb2
{[%clk 00:15:35]} {[%emt 00:01:47]} 14. Rd2 {[%clk 00:14:06]} {[%emt 00:00:24]}
Na4 {[%clk 00:15:19]} {[%emt 00:00:22]} 15. Be2 {[%clk 00:13:38]} {[%emt
00:00:35]} Bg7 {[%clk 00:14:54]} {[%emt 00:00:25]} 16. Rd3 {[%clk 00:12:03]}
{[%emt 00:01:39]} Nc5 {[%clk 00:13:57]} {[%emt 00:01:05]} 17. Rd5 {[%clk
00:11:12]} {[%emt 00:00:56]} d6 {[%clk 00:13:12]} {[%emt 00:00:53]} 18. Rdd1
{[%clk 00:10:00]} {[%emt 00:01:16]} Be6 {[%clk 00:12:37]} {[%emt 00:00:41]} 19.
Rhe1 {[%clk 00:08:51]} {[%emt 00:01:15]} Rc8 {[%clk 00:12:13]} {[%emt
00:00:28]} 20. Kb1 {[%clk 00:08:09]} {[%emt 00:00:47]} Na4 {[%clk 00:11:57]}
{[%emt 00:00:21]} 21. Rc1 {[%clk 00:06:59]} {[%emt 00:01:13]} Nc3+ {[%clk
00:11:30]} {[%emt 00:00:34]} 22. Kc2 {[%clk 00:06:33]} {[%emt 00:00:30]} Nxe2
{[%clk 00:10:03]} {[%emt 00:01:35]} 23. Rxe2 {[%clk 00:06:03]} {[%emt
00:00:35]} Bxc4 {[%clk 00:09:50]} {[%emt 00:00:17]} 24. Ree1 {[%clk 00:03:48]}
{[%emt 00:02:21]} Bxa2+ {[%clk 00:09:35]} {[%emt 00:00:19]} 25. Kd1 {[%clk
00:03:30]} {[%emt 00:00:23]} Bb3+ {[%clk 00:08:30]} {[%emt 00:01:09]} 26. Ke2
{[%clk 00:03:03]} {[%emt 00:00:33]} Rxc1 {[%clk 00:07:07]} {[%emt 00:01:29]} 27.
Rxc1 {[%clk 00:02:59]} {[%emt 00:00:08]} Kd7 {[%clk 00:07:02]} {[%emt
00:00:10]} 28. Kd3 {[%clk 00:02:30]} {[%emt 00:00:35]} a5 {[%clk 00:06:41]}
{[%emt 00:00:25]} 29. Rb1 {[%clk 00:02:31]} {[%emt 00:00:05]} a4 {[%clk
00:06:43]} {[%emt 00:00:02]} 30. f4 {[%clk 00:01:55]} {[%emt 00:00:40]} a3
{[%clk 00:05:53]} {[%emt 00:00:56]} 31. Rxb3 {[%clk 00:01:49]} {[%emt
00:00:11]} a2 {[%clk 00:05:56]} {[%emt 00:00:01]} 32. Rxb7+ {[%clk 00:01:45]}
{[%emt 00:00:10]} Kc6 {[%clk 00:05:56]} {[%emt 00:00:02]} 33. Ra7 {[%clk
00:01:46]} {[%emt 00:00:07]} a1=Q {[%clk 00:05:59]} {[%emt 00:00:02]} 34. Rxa1
{[%clk 00:01:50]} {[%emt 00:00:02]} Bxa1 {[%clk 00:06:02]} {[%emt 00:00:02]} 35.
g4 {[%clk 00:01:47]} {[%emt 00:00:08]} Kd7 {[%clk 00:05:44]} {[%emt 00:00:22]}
0-1



[ePGN "0.1;DGT LiveChess/2.2.6"]